[Event "Estonian Women's Chess Championship 2021"]
[Site "Tallinn, Paul Keres Chess House, Estonia"]
[Date "2021.12.16"]
[Round "6.4"]
[White "Sinitsina, Anastassia"]
[Black "Haapsal, Maria Ioanna"]
[Result "1-0"]
[TimeControl "90 minutes for first 40 moves and 15 min. for the rest of the game with 30 sec."]
[WhiteTitle "WFM"]
[WhiteFideId "4504640"]
[BlackFideId "4512286"]
[WhiteElo "2159"]
[BlackElo "1441"]

1. Nf3 {[%clk 01:30:40]} {[%emt 00:00:19]} d5 {[%clk 01:30:39]} {[%emt
00:00:21]} 2. g3 {[%emt 00:00:21]} e6 3. Bg2 {[%clk 01:30:27]} {[%emt
00:01:03]} Nf6 {[%clk 01:30:55]} {[%emt 00:00:32]} 4. O-O {[%clk 01:30:21]}
{[%emt 00:00:37]} Be7 {[%clk 01:30:56]} {[%emt 00:00:29]} 5. d3 {[%clk
01:30:40]} {[%emt 00:00:12]} O-O {[%clk 01:31:00]} {[%emt 00:00:26]} 6. Nbd2
{[%clk 01:30:55]} {[%emt 00:00:15]} b6 {[%clk 01:30:54]} {[%emt 00:00:36]} 7.
b3 {[%clk 01:26:46]} {[%emt 00:04:38]} Bb7 {[%clk 01:30:56]} {[%emt 00:00:28]}
8. Bb2 {[%clk 01:27:11]} {[%emt 00:00:06]} Nbd7 {[%clk 01:30:53]} {[%emt
00:00:33]} 9. c4 {[%clk 01:27:27]} {[%emt 00:00:15]} c5 {[%clk 01:30:14]}
{[%emt 00:01:08]} 10. Qc2 {[%clk 01:27:01]} {[%emt 00:00:56]} Qc7 {[%clk
01:29:03]} {[%emt 00:01:40]} 11. cxd5 {[%clk 01:25:29]} {[%emt 00:02:03]} exd5
{[%clk 01:28:56]} {[%emt 00:00:37]} 12. d4 {[%clk 01:25:08]} {[%emt 00:00:51]}
Rac8 {[%clk 01:26:48]} {[%emt 00:02:38]} 13. Rac1 {[%clk 01:25:05]} {[%emt
00:00:33]} Bd6 {[%clk 01:21:02]} {[%emt 00:06:17]} 14. Qb1 {[%clk 01:21:55]}
{[%emt 00:03:40]} Qb8 {[%clk 01:18:12]} {[%emt 00:03:19]} 15. Rfe1 {[%clk
01:19:55]} {[%emt 00:02:30]} Rfe8 {[%clk 01:17:30]} {[%emt 00:01:12]} 16. Bh3
{[%clk 01:14:48]} {[%emt 00:05:37]} Rc7 {[%clk 01:15:05]} {[%emt 00:02:56]} 17.
Qa1 {[%clk 01:10:49]} {[%emt 00:04:28]} Bf8 {[%clk 01:12:41]} {[%emt 00:02:54]}
18. dxc5 {[%clk 01:10:38]} {[%emt 00:00:42]} bxc5 {[%clk 01:12:27]} {[%emt
00:00:44]} 19. Ne5 {[%clk 01:09:48]} {[%emt 00:01:21]} d4 {[%clk 01:06:15]}
{[%emt 00:06:42]} 20. Nxd7 {[%clk 01:09:19]} {[%emt 00:00:59]} Nxd7 {[%clk
01:04:49]} {[%emt 00:01:55]} 21. Qb1 {[%clk 01:08:23]} {[%emt 00:01:27]} Ba6
{[%clk 00:57:29]} {[%emt 00:07:50]} 22. Ne4 {[%clk 01:03:12]} {[%emt 00:05:41]}
Bb7 {[%clk 00:45:57]} {[%emt 00:12:02]} 23. Bg2 {[%clk 01:02:13]} {[%emt
00:01:28]} Qd8 {[%clk 00:39:12]} {[%emt 00:07:15]} 24. Nd2 {[%clk 00:56:15]}
{[%emt 00:06:29]} Bxg2 {[%clk 00:37:16]} {[%emt 00:02:26]} 25. Kxg2 {[%clk
00:56:40]} {[%emt 00:00:05]} Nf6 {[%clk 00:35:11]} {[%emt 00:02:35]} 26. Qd3
{[%clk 00:54:34]} {[%emt 00:02:36]} Qd5+ {[%clk 00:32:38]} {[%emt 00:03:02]} 27.
Qf3 {[%clk 00:53:59]} {[%emt 00:01:05]} Qxf3+ {[%clk 00:31:06]} {[%emt
00:02:02]} 28. Kxf3 {[%clk 00:54:13]} {[%emt 00:00:16]} Nd5 {[%clk 00:27:11]}
{[%emt 00:04:26]} 29. Nc4 {[%clk 00:52:45]} {[%emt 00:01:58]} Rc6 {[%clk
00:24:22]} {[%emt 00:03:18]} 30. e3 {[%clk 00:52:04]} {[%emt 00:01:11]} Rf6+
{[%clk 00:23:17]} {[%emt 00:01:34]} 31. Kg2 {[%clk 00:51:46]} {[%emt 00:00:49]}
Rfe6 {[%clk 00:22:31]} {[%emt 00:01:17]} 32. Red1 {[%clk 00:51:57]} {[%emt
00:00:19]} Nb4 {[%clk 00:15:28]} {[%emt 00:07:33]} 33. a3 {[%clk 00:50:58]}
{[%emt 00:01:30]} Nc6 {[%clk 00:15:23]} {[%emt 00:00:35]} 34. exd4 {[%clk
00:51:22]} {[%emt 00:00:06]} cxd4 {[%clk 00:15:34]} {[%emt 00:00:19]} 35. Bxd4
{[%clk 00:51:25]} {[%emt 00:00:26]} Nxd4 {[%clk 00:15:37]} {[%emt 00:00:27]} 36.
Rxd4 {[%clk 00:51:48]} {[%emt 00:00:07]} Re2 {[%clk 00:14:49]} {[%emt
00:01:16]} 37. b4 {[%clk 00:50:40]} {[%emt 00:01:40]} Ra2 {[%clk 00:14:16]}
{[%emt 00:01:01]} 38. Rd2 {[%clk 00:49:12]} {[%emt 00:01:59]} Rxd2 {[%clk
00:12:33]} {[%emt 00:02:14]} 39. Nxd2 {[%clk 00:49:37]} {[%emt 00:00:05]} g6
{[%clk 00:12:04]} {[%emt 00:01:00]} 40. Rc7 {[%clk 01:04:25]} {[%emt 00:00:42]}
Re7 {[%clk 00:25:50]} {[%emt 00:01:44]} 41. Rxe7 {[%clk 01:04:43]} {[%emt
00:00:12]} Bxe7 {[%clk 00:26:16]} {[%emt 00:00:04]} 42. Nc4 {[%clk 01:04:57]}
{[%emt 00:00:16]} Bd8 {[%clk 00:25:16]} {[%emt 00:01:30]} 43. Kf3 {[%clk
01:04:55]} {[%emt 00:00:33]} Kf8 {[%clk 00:25:24]} {[%emt 00:00:22]} 44. Ke4
{[%clk 01:05:17]} {[%emt 00:00:07]} Ke7 {[%clk 00:25:25]} {[%emt 00:00:30]} 45.
Kd5 {[%clk 01:05:43]} {[%emt 00:00:04]} f6 {[%clk 00:25:09]} {[%emt 00:00:46]}
46. a4 {[%clk 01:06:03]} {[%emt 00:00:10]} Kd7 {[%clk 00:25:16]} {[%emt
00:00:23]} 47. b5 {[%clk 01:06:28]} {[%emt 00:00:05]} Bb6 {[%clk 00:24:53]}
{[%emt 00:00:52]} 48. Nxb6+ {[%clk 01:06:40]} {[%emt 00:00:20]} axb6 {[%clk
00:25:18]} {[%emt 00:00:04]} 49. f3 {[%clk 01:06:59]} {[%emt 00:00:11]} h5
{[%clk 00:24:50]} {[%emt 00:00:58]} 50. h3 {[%clk 01:07:11]} {[%emt 00:00:18]}
g5 {[%clk 00:24:47]} {[%emt 00:00:32]} 51. f4 {[%clk 01:06:49]} {[%emt
00:00:53]} h4 {[%clk 00:22:47]} {[%emt 00:02:29]} 52. gxh4 {[%clk 01:07:13]}
{[%emt 00:00:07]} gxh4 {[%clk 00:23:08]} {[%emt 00:00:09]} 53. f5 {[%clk
01:07:39]} {[%emt 00:00:04]} Ke7 {[%clk 00:23:17]} {[%emt 00:00:21]} 54. Kc6
{[%clk 01:08:05]} {[%emt 00:00:04]} Kf7 {[%clk 00:23:42]} {[%emt 00:00:05]} 55.
Kxb6 {[%clk 01:08:30]} {[%emt 00:00:05]} Kg7 {[%clk 00:24:05]} {[%emt
00:00:07]} 56. a5 {[%clk 01:08:57]} {[%emt 00:00:04]} Kh6 {[%clk 00:24:29]}
{[%emt 00:00:05]} 57. a6 {[%clk 01:09:24]} {[%emt 00:00:03]} Kg5 {[%clk
00:24:53]} {[%emt 00:00:06]} 58. a7 {[%clk 01:09:51]} {[%emt 00:00:03]} Kxf5
{[%clk 00:25:16]} {[%emt 00:00:07]} 59. a8=Q {[%clk 01:10:18]} {[%emt
00:00:04]} 1-0

[Event "Estonian Women's Chess Championship 2021"]
[Site "Tallinn, Paul Keres Chess House, Estonia"]
[Date "2021.12.17"]
[Round "7.1"]
[White "Haapsal, Maria Ioanna"]
[Black "Barkasheva, Sofia"]
[Result "0-1"]
[TimeControl "90 minutes for first 40 moves and 15 min. for the rest of the game with 30 sec."]
[WhiteFideId "4512286"]
[BlackFideId "4510615"]
[WhiteElo "1441"]
[BlackElo "1505"]

1. e4 {[%clk 01:30:55]} {[%emt 00:00:04]} c5 {[%clk 01:30:56]} {[%emt
00:00:05]} 2. Nf3 {[%clk 01:31:15]} {[%emt 00:00:10]} e6 {[%clk 01:31:22]}
{[%emt 00:00:05]} 3. d4 {[%clk 01:31:39]} {[%emt 00:00:05]} cxd4 {[%clk
01:31:48]} {[%emt 00:00:05]} 4. Nxd4 {[%clk 01:32:03]} {[%emt 00:00:05]} a6
{[%clk 01:32:13]} {[%emt 00:00:06]} 5. Bd3 {[%clk 01:32:13]} {[%emt 00:00:20]}
Nf6 {[%clk 01:32:37]} {[%emt 00:00:06]} 6. O-O {[%clk 01:32:29]} {[%emt
00:00:13]} Qc7 {[%clk 01:32:55]} {[%emt 00:00:12]} 7. Qe2 {[%clk 01:32:44]}
{[%emt 00:00:14]} d6 {[%clk 01:33:19]} {[%emt 00:00:07]} 8. c4 {[%clk
01:32:35]} {[%emt 00:00:39]} g6 {[%clk 01:33:33]} {[%emt 00:00:17]} 9. Nc3
{[%clk 01:30:40]} {[%emt 00:02:25]} Bg7 {[%clk 01:33:37]} {[%emt 00:00:25]} 10.
Be3 {[%clk 01:29:38]} {[%emt 00:01:32]} Nbd7 {[%clk 01:31:56]} {[%emt
00:02:12]} 11. Rad1 {[%clk 01:25:18]} {[%emt 00:04:50]} Ne5 {[%clk 01:27:57]}
{[%emt 00:04:29]} 12. f4 {[%clk 01:22:27]} {[%emt 00:03:21]} Neg4 {[%clk
01:23:15]} {[%emt 00:05:12]} 13. Rd2 {[%clk 01:11:55]} {[%emt 00:11:02]} Nxe3
{[%clk 01:21:11]} {[%emt 00:02:35]} 14. Qxe3 {[%clk 01:12:17]} {[%emt
00:00:09]} Ng4 {[%clk 01:20:04]} {[%emt 00:01:35]} 15. Ndb5 {[%clk 01:02:57]}
{[%emt 00:09:51]} axb5 {[%clk 01:09:14]} {[%emt 00:11:20]} 16. Nxb5 {[%clk
01:03:06]} {[%emt 00:00:21]} Qc6 {[%clk 01:03:54]} {[%emt 00:05:49]} 17. Qe2
{[%clk 01:01:59]} {[%emt 00:01:38]} Qb6+ {[%clk 00:51:17]} {[%emt 00:13:06]} 18.
Kh1 {[%clk 01:02:11]} {[%emt 00:00:19]} h5 {[%clk 00:48:04]} {[%emt 00:03:43]}
19. Bb1 {[%clk 01:00:29]} {[%emt 00:02:11]} O-O {[%clk 00:36:25]} {[%emt
00:12:09]} 20. Rxd6 {[%clk 00:54:08]} {[%emt 00:06:51]} Qe3 {[%clk 00:35:02]}
{[%emt 00:01:52]} 21. Qc2 {[%clk 00:51:18]} {[%emt 00:03:20]} Ra6 {[%clk
00:30:11]} {[%emt 00:05:21]} 22. Rd2 {[%clk 00:48:06]} {[%emt 00:03:41]} Bh6
{[%clk 00:22:35]} {[%emt 00:08:07]} 23. Re2 {[%clk 00:44:02]} {[%emt 00:04:35]}
Qc5 {[%clk 00:20:21]} {[%emt 00:02:42]} 24. Qd3 {[%clk 00:40:03]} {[%emt
00:04:31]} Qe7 {[%clk 00:15:46]} {[%emt 00:05:04]} 25. e5 {[%clk 00:29:02]}
{[%emt 00:11:31]} Rd8 {[%clk 00:13:58]} {[%emt 00:02:18]} 26. Nd6 {[%clk
00:28:50]} {[%emt 00:00:43]} Raxd6 {[%clk 00:12:49]} {[%emt 00:01:39]} 27. exd6
{[%clk 00:29:04]} {[%emt 00:00:15]} Rxd6 {[%clk 00:12:52]} {[%emt 00:00:28]} 28.
Qc3 {[%clk 00:24:48]} {[%emt 00:04:44]} Bxf4 {[%clk 00:08:00]} {[%emt
00:05:24]} 29. h3 {[%clk 00:14:27]} {[%emt 00:10:50]} Qh4 {[%clk 00:06:51]}
{[%emt 00:01:40]} 30. Kg1 {[%clk 00:12:09]} {[%emt 00:02:48]} Bh2+ {[%clk
00:05:44]} {[%emt 00:01:37]} 31. Kh1 {[%clk 00:12:20]} {[%emt 00:00:18]} Bf4
{[%clk 00:05:14]} {[%emt 00:01:00]} 32. Kg1 {[%clk 00:12:35]} {[%emt 00:00:16]}
Nh2 {[%clk 00:04:37]} {[%emt 00:01:07]} 33. Rfe1 {[%clk 00:09:15]} {[%emt
00:03:51]} Bg3 {[%clk 00:03:10]} {[%emt 00:01:56]} 34. Rc1 {[%clk 00:08:31]}
{[%emt 00:01:13]} Bf4 {[%clk 00:01:20]} {[%emt 00:02:20]} 35. Rce1 {[%clk
00:08:51]} {[%emt 00:00:10]} Bd2 {[%clk 00:01:04]} {[%emt 00:00:47]} 36. Qe5
{[%clk 00:07:28]} {[%emt 00:01:53]} Bf4 {[%clk 00:01:14]} {[%emt 00:00:20]} 37.
Qc3 {[%clk 00:07:51]} {[%emt 00:00:07]} e5 {[%clk 00:00:42]} {[%emt 00:01:02]}
38. c5 {[%clk 00:00:57]} {[%emt 00:07:37]} Rd4 {[%clk 00:00:42]} {[%emt
00:00:29]} 39. a3 {[%clk 00:00:49]} {[%emt 00:00:39]} Bg3 {[%clk 00:00:42]}
{[%emt 00:00:30]} 40. Rc1 {[%clk 00:15:57]} {[%emt 00:00:22]} Bg4 {[%clk
00:15:35]} {[%emt 00:00:36]} 41. Rec2 {[%clk 00:10:55]} {[%emt 00:05:32]} Rf4
{[%clk 00:02:07]} {[%emt 00:13:59]} 42. Qe3 {[%clk 00:07:21]} {[%emt 00:04:02]}
Nf3+ {[%clk 00:01:14]} {[%emt 00:01:24]} 43. gxf3 {[%clk 00:02:44]} {[%emt
00:05:08]} Rxf3 {[%clk 00:01:28]} {[%emt 00:00:16]} 44. Qd2 {[%clk 00:02:04]}
{[%emt 00:01:08]} Bf4 {[%clk 00:00:42]} {[%emt 00:01:18]} 45. Qe1 {[%clk
00:01:10]} {[%emt 00:01:24]} Be3+ {[%clk 00:00:44]} {[%emt 00:00:27]} 46. Kh1
{[%clk 00:00:58]} {[%emt 00:00:42]} Rxh3+ {[%clk 00:01:03]} {[%emt 00:00:12]}
47. Kg2 {[%clk 00:01:11]} {[%emt 00:00:18]} Bf3+ {[%clk 00:01:28]} {[%emt
00:00:05]} 48. Kf1 {[%clk 00:01:22]} {[%emt 00:00:17]} Rh1# {[%clk 00:01:55]}
{[%emt 00:00:05]} 0-1

[Event "Estonian Women's Chess Championship 2021"]
[Site "Tallinn, Paul Keres Chess House, Estonia"]
[Date "2021.12.17"]
[Round "7.2"]
[White "Narva, Triin"]
[Black "Sinitsina, Anastassia"]
[Result "0-1"]
[TimeControl "90 minutes for first 40 moves and 15 min. for the rest of the game with 30 sec."]
[WhiteTitle "WFM"]
[BlackTitle "WFM"]
[WhiteFideId "4502680"]
[BlackFideId "4504640"]
[WhiteElo "2112"]
[BlackElo "2159"]

1. e4 {[%clk 01:30:57]} {[%emt 00:00:02]} e5 {[%clk 01:30:50]} {[%emt
00:00:11]} 2. Nc3 {[%clk 01:31:15]} {[%emt 00:00:11]} Nf6 {[%clk 01:31:03]}
{[%emt 00:00:18]} 3. d4 {[%clk 01:31:35]} {[%emt 00:00:09]} exd4 {[%clk
01:30:43]} {[%emt 00:00:51]} 4. Qxd4 {[%clk 01:32:00]} {[%emt 00:00:05]} Nc6
{[%clk 01:31:06]} {[%emt 00:00:07]} 5. Qd3 {[%clk 01:32:25]} {[%emt 00:00:04]}
Bb4 {[%clk 01:28:49]} {[%emt 00:02:48]} 6. Bd2 {[%clk 01:32:49]} {[%emt
00:00:06]} O-O {[%clk 01:29:02]} {[%emt 00:00:18]} 7. O-O-O {[%clk 01:30:18]}
{[%emt 00:03:01]} Re8 {[%clk 01:28:23]} {[%emt 00:01:09]} 8. Nge2 {[%clk
01:30:34]} {[%emt 00:00:14]} Bf8 {[%clk 01:18:34]} {[%emt 00:10:20]} 9. Bg5
{[%clk 01:29:34]} {[%emt 00:01:29]} h6 {[%clk 01:14:35]} {[%emt 00:04:29]} 10.
Bxf6 {[%clk 01:28:16]} {[%emt 00:01:48]} Qxf6 {[%clk 01:14:55]} {[%emt
00:00:10]} 11. f4 {[%clk 01:28:15]} {[%emt 00:00:31]} d6 {[%clk 01:09:23]}
{[%emt 00:06:03]} 12. Nd5 {[%clk 01:26:06]} {[%emt 00:02:38]} Qd8 {[%clk
01:09:49]} {[%emt 00:00:04]} 13. Qf3 {[%clk 01:25:43]} {[%emt 00:00:53]} Ne7
{[%clk 01:08:48]} {[%emt 00:01:31]} 14. Nec3 {[%clk 01:17:19]} {[%emt
00:08:54]} Nxd5 {[%clk 01:08:47]} {[%emt 00:00:31]} 15. Nxd5 {[%clk 01:07:24]}
{[%emt 00:10:24]} c6 {[%clk 01:08:07]} {[%emt 00:01:10]} 16. Nc3 {[%clk
01:04:33]} {[%emt 00:03:21]} Qa5 {[%clk 01:04:44]} {[%emt 00:03:54]} 17. g4
{[%clk 00:52:45]} {[%emt 00:12:17]} b5 {[%clk 01:04:43]} {[%emt 00:00:32]} 18.
h4 {[%clk 00:40:15]} {[%emt 00:13:00]} b4 {[%clk 01:04:32]} {[%emt 00:00:41]}
19. Nb1 {[%clk 00:40:34]} {[%emt 00:00:11]} Qxa2 {[%clk 01:03:25]} {[%emt
00:01:37]} 20. g5 {[%clk 00:40:07]} {[%emt 00:00:56]} h5 {[%clk 01:00:34]}
{[%emt 00:03:21]} 21. f5 {[%clk 00:31:38]} {[%emt 00:08:59]} d5 {[%clk
00:55:54]} {[%emt 00:05:11]} 22. Qxh5 {[%clk 00:10:59]} {[%emt 00:21:08]} Bd6
{[%clk 00:55:21]} {[%emt 00:01:03]} 23. g6 {[%clk 00:11:04]} {[%emt 00:00:24]}
Bf4+ {[%clk 00:55:20]} {[%emt 00:00:31]} 24. Rd2 {[%clk 00:11:29]} {[%emt
00:00:05]} fxg6 {[%clk 00:55:25]} {[%emt 00:00:25]} 25. Qxg6 {[%clk 00:09:10]}
{[%emt 00:02:48]} Rxe4 {[%clk 00:41:10]} {[%emt 00:14:46]} 26. Bd3 {[%clk
00:01:57]} {[%emt 00:07:42]} Bxf5 {[%clk 00:36:45]} {[%emt 00:04:54]} 27. Qxf5
{[%clk 00:01:13]} {[%emt 00:01:14]} Rf8 {[%clk 00:37:05]} {[%emt 00:00:10]} 28.
Bxe4 {[%clk 00:01:04]} {[%emt 00:00:40]} Rxf5 {[%clk 00:37:25]} {[%emt
00:00:11]} 29. Bxf5 {[%clk 00:01:30]} {[%emt 00:00:04]} Qc4 {[%clk 00:36:55]}
{[%emt 00:01:00]} 30. Bd3 {[%clk 00:00:44]} {[%emt 00:01:15]} Qd4 {[%clk
00:36:39]} {[%emt 00:00:46]} 31. h5 {[%clk 00:00:35]} {[%emt 00:00:39]} c5
{[%clk 00:36:46]} {[%emt 00:00:23]} 32. Bg6 {[%clk 00:00:34]} {[%emt 00:00:31]}
Qe5 {[%clk 00:35:06]} {[%emt 00:02:10]} 33. Rf1 {[%clk 00:00:42]} {[%emt
00:00:22]} c4 {[%clk 00:32:17]} {[%emt 00:03:19]} 34. Kd1 {[%clk 00:00:59]}
{[%emt 00:00:12]} Bxd2 {[%clk 00:32:37]} {[%emt 00:00:10]} 35. Nxd2 {[%clk
00:01:16]} {[%emt 00:00:13]} Qxb2 {[%clk 00:32:49]} {[%emt 00:00:18]} 36. Re1
{[%clk 00:00:42]} {[%emt 00:01:04]} Qa1+ {[%clk 00:33:09]} {[%emt 00:00:10]} 37.
Ke2 {[%clk 00:01:07]} {[%emt 00:00:04]} Qe5+ {[%clk 00:32:47]} {[%emt
00:00:52]} 38. Kd1 {[%clk 00:01:15]} {[%emt 00:00:22]} Qa1+ {[%clk 00:33:12]}
{[%emt 00:00:05]} 39. Ke2 {[%clk 00:01:43]} {[%emt 00:00:03]} Qe5+ {[%clk
00:33:39]} {[%emt 00:00:04]} 40. Kf2 {[%clk 00:16:27]} {[%emt 00:00:45]} Qh2+
{[%clk 00:45:57]} {[%emt 00:03:13]} 41. Kf3 {[%clk 00:09:14]} {[%emt 00:07:43]}
Qh3+ {[%clk 00:46:21]} {[%emt 00:00:06]} 42. Ke2 {[%clk 00:07:49]} {[%emt
00:01:54]} Qg4+ {[%clk 00:41:17]} {[%emt 00:05:34]} 43. Nf3 {[%clk 00:06:49]}
{[%emt 00:01:30]} Qg3 {[%clk 00:39:03]} {[%emt 00:02:44]} 44. Rg1 {[%clk
00:04:01]} {[%emt 00:03:17]} Qb8 {[%clk 00:38:42]} {[%emt 00:00:51]} 45. Kf2
{[%clk 00:01:48]} {[%emt 00:02:43]} a5 {[%clk 00:38:31]} {[%emt 00:00:41]} 46.
Re1 {[%clk 00:02:02]} {[%emt 00:00:16]} a4 {[%clk 00:36:52]} {[%emt 00:02:09]}
47. Ne5 {[%clk 00:02:07]} {[%emt 00:00:25]} a3 {[%clk 00:35:58]} {[%emt
00:01:25]} 48. Bf7+ {[%clk 00:01:14]} {[%emt 00:01:21]} Kh7 {[%clk 00:35:35]}
{[%emt 00:00:52]} 49. Bxd5 {[%clk 00:01:20]} {[%emt 00:00:25]} a2 {[%clk
00:35:09]} {[%emt 00:00:57]} 50. Be4+ {[%clk 00:00:36]} {[%emt 00:01:13]} Kh6
{[%clk 00:32:15]} {[%emt 00:03:24]} 51. Bg6 {[%clk 00:00:39]} {[%emt 00:00:28]}
Qxe5 {[%clk 00:32:31]} {[%emt 00:00:14]} 52. Rxe5 {[%clk 00:01:03]} {[%emt
00:00:05]} a1=Q {[%clk 00:32:58]} {[%emt 00:00:03]} 53. Re8 {[%clk 00:00:32]}
{[%emt 00:01:01]} Kg5 {[%clk 00:33:13]} {[%emt 00:00:14]} 54. Ke2 {[%clk
00:00:46]} {[%emt 00:00:16]} b3 {[%clk 00:33:27]} {[%emt 00:00:17]} 55. cxb3
{[%clk 00:00:41]} {[%emt 00:00:36]} cxb3 {[%clk 00:33:52]} {[%emt 00:00:05]} 56.
Kd2 {[%clk 00:00:42]} {[%emt 00:00:28]} b2 {[%clk 00:34:09]} {[%emt 00:00:14]}
57. Re1 {[%clk 00:01:08]} {[%emt 00:00:05]} Qa5+ {[%clk 00:34:31]} {[%emt
00:00:07]} 58. Ke2 {[%clk 00:01:22]} {[%emt 00:00:15]} Qc3 {[%clk 00:34:49]}
{[%emt 00:00:13]} 59. Rb1 {[%clk 00:01:05]} {[%emt 00:00:47]} Qc1 {[%clk
00:35:08]} {[%emt 00:00:10]} 60. Kf3 {[%clk 00:01:10]} {[%emt 00:00:25]} Kf6
{[%clk 00:35:16]} {[%emt 00:00:23]} 61. Kg4 {[%clk 00:00:56]} {[%emt 00:00:43]}
Ke5 {[%clk 00:35:40]} {[%emt 00:00:07]} 62. Kf3 {[%clk 00:00:39]} {[%emt
00:00:46]} Kd4 {[%clk 00:36:05]} {[%emt 00:00:05]} 0-1

[Event "Estonian Women's Chess Championship 2021"]
[Site "Tallinn, Paul Keres Chess House, Estonia"]
[Date "2021.12.17"]
[Round "7.3"]
[White "Ivanova, Lidia"]
[Black "Blokhin, Sofia"]
[Result "0-1"]
[TimeControl "90 minutes for first 40 moves and 15 min. for the rest of the game with 30 sec."]
[BlackTitle "WCM"]
[WhiteFideId "4506480"]
[BlackFideId "4508190"]
[WhiteElo "1443"]
[BlackElo "2032"]

1. e4 {[%clk 01:30:57]} {[%emt 00:00:02]} c5 {[%clk 01:27:07]} {[%emt
00:03:53]} 2. f4 {[%clk 01:31:16]} {[%emt 00:00:11]} Nc6 {[%clk 01:26:01]}
{[%emt 00:01:37]} 3. Nf3 {[%clk 01:31:32]} {[%emt 00:00:13]} g6 {[%clk
01:23:39]} {[%emt 00:02:52]} 4. Bb5 {[%clk 01:31:51]} {[%emt 00:00:11]} Bg7
{[%clk 01:22:57]} {[%emt 00:01:12]} 5. Bxc6 {[%clk 01:32:13]} {[%emt 00:00:08]}
bxc6 {[%clk 01:22:35]} {[%emt 00:00:53]} 6. d3 {[%clk 01:32:20]} {[%emt
00:00:22]} d5 {[%clk 01:16:34]} {[%emt 00:06:31]} 7. Qe2 {[%clk 01:24:25]}
{[%emt 00:08:24]} Nf6 {[%clk 01:12:56]} {[%emt 00:04:08]} 8. e5 {[%clk
01:24:20]} {[%emt 00:00:37]} Nd7 {[%clk 01:12:56]} {[%emt 00:00:29]} 9. c4
{[%clk 01:24:13]} {[%emt 00:00:38]} e6 {[%clk 01:12:05]} {[%emt 00:01:21]} 10.
O-O {[%clk 01:23:22]} {[%emt 00:01:20]} O-O {[%clk 01:07:38]} {[%emt 00:04:56]}
11. Nc3 {[%clk 01:14:40]} {[%emt 00:09:14]} Nb6 {[%clk 00:58:28]} {[%emt
00:09:41]} 12. b3 {[%clk 01:10:57]} {[%emt 00:04:13]} f6 {[%clk 00:53:34]}
{[%emt 00:05:24]} 13. Bb2 {[%clk 01:09:34]} {[%emt 00:01:52]} fxe5 {[%clk
00:47:05]} {[%emt 00:06:59]} 14. Nxe5 {[%clk 01:06:24]} {[%emt 00:03:40]} Qd6
{[%clk 00:45:03]} {[%emt 00:02:33]} 15. Rae1 {[%clk 01:01:13]} {[%emt
00:05:40]} a5 {[%clk 00:40:50]} {[%emt 00:04:43]} 16. h4 {[%clk 00:51:36]}
{[%emt 00:10:07]} Rf5 {[%clk 00:37:10]} {[%emt 00:04:09]} 17. g4 {[%clk
00:46:25]} {[%emt 00:05:42]} Rf8 {[%clk 00:36:42]} {[%emt 00:00:57]} 18. g5
{[%clk 00:44:55]} {[%emt 00:02:01]} Rf5 {[%clk 00:34:10]} {[%emt 00:03:02]} 19.
Nd1 {[%clk 00:42:26]} {[%emt 00:03:00]} d4 {[%clk 00:31:35]} {[%emt 00:03:04]}
20. Rf3 {[%clk 00:29:42]} {[%emt 00:13:14]} Bb7 {[%clk 00:27:51]} {[%emt
00:04:15]} 21. Bc1 {[%clk 00:21:55]} {[%emt 00:08:16]} Qf8 {[%clk 00:24:25]}
{[%emt 00:03:52]} 22. Ng4 {[%clk 00:14:21]} {[%emt 00:08:07]} Re8 {[%clk
00:22:31]} {[%emt 00:02:23]} 23. Qf2 {[%clk 00:13:10]} {[%emt 00:01:42]} Nd7
{[%clk 00:20:29]} {[%emt 00:02:32]} 24. Nh2 {[%clk 00:12:46]} {[%emt 00:00:54]}
Qd6 {[%clk 00:19:28]} {[%emt 00:01:32]} 25. Nf1 {[%clk 00:12:12]} {[%emt
00:01:04]} Ref8 {[%clk 00:17:10]} {[%emt 00:02:48]} 26. Ng3 {[%clk 00:12:30]}
{[%emt 00:00:12]} R5f7 {[%clk 00:17:29]} {[%emt 00:00:10]} 27. Ne4 {[%clk
00:11:40]} {[%emt 00:01:21]} Qe7 {[%clk 00:16:32]} {[%emt 00:01:27]} 28. Ba3
{[%clk 00:10:52]} {[%emt 00:01:19]} e5 {[%clk 00:15:38]} {[%emt 00:01:24]} 29.
Rf1 {[%clk 00:10:23]} {[%emt 00:00:59]} exf4 {[%clk 00:14:14]} {[%emt
00:01:54]} 30. Qh2 {[%clk 00:09:20]} {[%emt 00:01:32]} Qe5 {[%clk 00:13:40]}
{[%emt 00:01:04]} 31. Ndf2 {[%clk 00:09:05]} {[%emt 00:00:45]} Rf5 {[%clk
00:11:39]} {[%emt 00:02:32]} 32. Nh3 {[%clk 00:08:16]} {[%emt 00:01:19]} Qc7
{[%clk 00:10:37]} {[%emt 00:01:30]} 33. Qd2 {[%clk 00:08:25]} {[%emt 00:00:23]}
Bc8 {[%clk 00:04:51]} {[%emt 00:06:16]} 34. Kg2 {[%clk 00:04:54]} {[%emt
00:04:01]} Ne5 {[%clk 00:04:52]} {[%emt 00:00:29]} 35. Rxf4 {[%clk 00:02:36]}
{[%emt 00:02:49]} Ng4 {[%clk 00:04:35]} {[%emt 00:00:47]} 36. Kg1 {[%clk
00:01:39]} {[%emt 00:01:26]} Ne3 {[%clk 00:04:35]} {[%emt 00:00:30]} 37. Rxf5
{[%clk 00:01:10]} {[%emt 00:01:00]} gxf5 {[%clk 00:04:07]} {[%emt 00:00:58]} 38.
Bxc5 {[%clk 00:00:37]} {[%emt 00:01:03]} fxe4 {[%clk 00:03:27]} {[%emt
00:01:10]} 39. Rxf8+ {[%clk 00:01:02]} {[%emt 00:00:05]} Bxf8 {[%clk 00:03:47]}
{[%emt 00:00:10]} 0-1